bitfinex-derivatives/quotes_SOLF0:USTF0_20250516
["timestamp","ask_amount","ask_price","bid_price","bid_amount"]
[1747421693033,65.7998,170.59,170.56,5.8605]
[1747421694935,65.7998,170.59,170.57,5.8603]
[1747421695233,5.8598,170.59,170.57,5.8603]
[1747421695437,65.6398,170.59,170.57,5.8603]
[1747421696034,61.876,170.6,170.58,5.8599]
[1747421696231,119.7,170.6,170.58,5.8599]
[1747421696628,119.7,170.6,170.59,5.8596]
[1747421697136,119.7,170.6,170.51,59.94]
[1747421697532,119.7,170.6,170.58,5.8597]
[1747421697733,59.72,170.61,170.52,10.78949779]
[1747421697930,5.8587,170.62,170.61,5.8589]
[1747421697931,59.76,170.62,170.61,5.8589]
[1747421698129,59.92,170.63,170.55,70.70949779]
[1747421698338,59.82,170.63,170.56,1.8355]
[1747421699835,59.82,170.63,170.61,5.8587]
[1747421700141,5.858,170.64,170.61,5.8587]
[1747421700637,59.78,170.65,170.55,59.92]
[1747421700837,59.78,170.65,170.54,59.9]
[1747421701032,5.8597,170.59,170.56,5.8605]
[1747421701535,65.5992,170.61,170.57,5.8601]
[1747421701734,59.74,170.61,170.57,5.8601]
[1747421701937,59.74,170.61,170.53,1.9891]
[1747421702239,59.74,170.61,170.5,59.72]
[1747421702425,63.6062,170.61,170.5,59.72]
[1747421702636,5.8609,170.56,170.53,5.8616]
[1747421703128,5.8609,170.56,170.54,5.8613]
[1747421703334,65.6804,170.57,170.54,5.8613]
[1747421704033,65.6804,170.57,170.55,5.861]
[1747421704239,59.82,170.57,170.55,5.861]
[1747421704742,59.82,170.57,170.54,5.8613]
[1747421704933,65.6806,170.57,170.54,5.8613]
[1747421705133,59.82,170.57,170.54,5.8613]
[1747421705539,65.6805,170.57,170.54,5.8613]
[1747421706036,65.6805,170.57,170.55,5.861]
[1747421706238,59.82,170.57,170.49,2.0263]
[1747421706738,59.82,170.57,170.55,5.8608]
[1747421707236,59.82,170.57,170.54,5.8613]
[1747421707539,59.82,170.57,170.49,2.0263]
[1747421708239,59.72,170.58,170.49,12.81579779]
[1747421708444,59.72,170.61,170.5,11.7254]
[1747421708638,59.72,170.61,170.51,59.76]
[1747421708839,119.48,170.61,170.52,59.72]
[1747421709041,119.48,170.61,170.58,5.8597]
[1747421709341,125.339,170.61,170.58,5.8597]
[1747421709639,119.48,170.61,170.52,59.72]
[1747421709842,5.8596,170.6,170.52,59.72]
[1747421710040,119.48,170.61,170.52,59.72]
[1747421710342,5.86,170.58,170.52,59.72]
[1747421710543,119.48,170.61,170.52,59.72]
[1747421711239,5.8598,170.59,170.56,5.8606]
[1747421711443,119.48,170.61,170.49,2.0263]
[1747421711640,5.861,170.55,170.53,5.8615]
[1747421711943,59.7,170.55,170.49,2.0263]
[1747421712637,10.80566623,170.5,170.34,10.80566623]
[1747421712843,5.8639,170.47,170.43,5.8651]
[1747421713046,119.74,170.49,170.36,3.8739]
[1747421713246,10.80566623,170.47,170.33,70.52566623]
[1747421713444,5.866,170.41,170.36,5.8673]
[1747421713633,60.08,170.4,170.33,70.52566623]
[1747421713835,60.08,170.4,170.38,5.8667]
[1747421714145,60.08,170.4,170.33,70.52566623]
[1747421714344,60.08,170.4,170.33,59.72]
[1747421714846,60.08,170.4,170.38,5.8668]
[1747421715148,60.08,170.4,170.33,59.72]
[1747421716346,5.8668,170.39,170.36,5.8675]
[1747421717644,65.9463,170.4,170.36,5.8675]
[1747421717846,65.9463,170.4,170.33,59.72]
[1747421718247,65.9463,170.4,170.36,5.8674]
[1747421718447,60.08,170.4,170.22,17.29594242]
[1747421718640,3.7622,170.39,170.23,123.8291]
[1747421718946,5.8685,170.34,170.23,123.8291]
[1747421719147,60.28,170.33,170.23,123.8291]
[1747421719347,3.7622,170.39,170.32,5.8689]
[1747421719645,120.06,170.38,170.27,59.76]
[1747421720547,5.8674,170.37,170.27,59.76]
[1747421720749,120.06,170.38,170.27,59.76]
[1747421721247,5.8674,170.37,170.33,5.8686]
[1747421721451,5.8674,170.37,170.27,59.76]
[1747421721848,5.8674,170.37,170.32,5.8689]
[1747421722054,120.06,170.38,170.27,59.76]
[1747421722645,5.868,170.35,170.27,59.76]
[1747421722850,60.22,170.34,170.27,59.76]
[1747421723045,120.0,170.34,170.27,59.76]
[1747421724253,120.0,170.34,170.24,59.78]
[1747421724849,120.0,170.34,170.26,5.8707]
[1747421725150,120.0,170.34,170.23,1.8961]
[1747421725550,5.8689,170.33,170.23,1.8961]
[1747421726150,5.8689,170.33,170.28,5.8701]
[1747421726453,5.8689,170.33,170.23,1.8961]
[1747421726952,120.0,170.34,170.32,5.8687]
[1747421727154,60.18,170.33,170.32,5.8687]
[1747421727748,60.18,170.33,170.23,1.8961]
[1747421727951,60.18,170.33,170.2,1.9114]
[1747421728251,5.8699,170.3,170.25,5.8711]
[1747421728452,60.38,170.29,170.25,5.8711]
[1747421728962,60.38,170.29,170.26,5.871]
[1747421729347,60.38,170.29,170.2,61.7114]
[1747421729547,60.42,170.3,170.28,5.8701]
[1747421730557,60.42,170.3,170.27,5.8705]
[1747421730956,60.42,170.3,170.2,61.7114]
[1747421732649,59.8,170.32,170.2,61.7114]
[1747421732955,60.4,170.29,170.2,61.7114]
[1747421733255,21.05814242,170.39,170.2,61.7114]
[1747421733553,60.44,170.36,170.23,17.29594242]
[1747421733854,60.48,170.35,170.24,120.92]
[1747421734050,60.44,170.36,170.24,120.92]
[1747421734256,66.3078,170.36,170.24,120.92]
[1747421734456,60.48,170.35,170.24,120.92]
[1747421735357,60.48,170.35,170.32,5.8689]
[1747421735656,60.48,170.35,170.24,120.92]
[1747421737958,60.48,170.35,170.31,5.869]
[1747421738358,66.3479,170.35,170.31,5.869]
[1747421738858,60.48,170.35,170.24,120.92]
[1747421739559,60.32,170.35,170.24,120.92]
[1747421740856,60.32,170.35,170.2,1.9114]
[1747421741157,17.32831391,170.28,170.12,60.44]
[1747421741357,5.8709,170.27,170.14,1.8694]
[1747421741555,10.83020616,170.3,170.14,12.69960616]
[1747421741858,126.8902,170.29,170.24,5.8715]
[1747421742050,60.58,170.28,170.24,5.8715]
[1747421742252,60.58,170.28,170.2,60.44]
[1747421742457,60.62,170.32,170.24,10.82902436]
[1747421742660,60.62,170.32,170.24,71.28902436]
[1747421742859,66.489,170.32,170.27,5.8706]
[1747421743664,66.489,170.32,170.28,5.8703]
[1747421744057,60.62,170.32,170.24,60.46]
[1747421744361,60.62,170.32,170.3,5.8693]
[1747421745464,60.46,170.34,170.31,5.8692]
[1747421745664,60.46,170.34,170.24,60.46]
[1747421745863,60.58,170.33,170.24,60.46]
[1747421746063,60.58,170.33,170.31,5.8692]
[1747421746571,60.58,170.33,170.24,60.46]
[1747421746572,60.58,170.33,170.32,5.8689]
[1747421747366,3.7622,170.39,170.28,60.46]
[1747421747665,60.46,170.37,170.28,60.46]
[1747421748166,5.8676,170.36,170.28,60.46]
[1747421748369,60.46,170.37,170.28,60.46]
[1747421748763,60.5,170.36,170.28,60.46]
[1747421748968,60.46,170.37,170.28,60.46]
[1747421749167,60.5,170.36,170.35,5.8679]
[1747421750059,60.46,170.37,170.35,5.8679]
[1747421750262,120.94,170.37,170.35,5.8679]
[1747421750872,60.46,170.37,170.36,5.8675]
[1747421751063,60.44,170.38,170.36,5.8675]
[1747421751676,60.44,170.38,170.35,5.8678]
[1747421752079,60.44,170.38,170.32,60.44]
[1747421752272,60.44,170.38,170.34,5.868]
[1747421753578,60.44,170.38,170.35,5.8678]
[1747421753876,60.44,170.38,170.32,60.44]
[1747421754278,60.44,170.44,170.32,120.8]
[1747421754474,1.17350231,170.43,170.32,120.8]
[1747421754674,1.17350231,170.43,170.39,5.8664]
[1747421754871,61.55350231,170.43,170.39,5.8664]
[1747421755882,61.55350231,170.43,170.4,5.8662]
[1747421757284,60.38,170.43,170.4,5.8662]
[1747421758286,66.2451,170.43,170.4,5.8662]
[1747421759087,60.38,170.43,170.4,5.8662]
[1747421761286,60.16,170.47,170.36,60.44]
[1747421761490,60.2,170.46,170.37,3.8783]
[1747421761690,60.2,170.45,170.37,5.8106]
[1747421761991,60.24,170.46,170.43,5.8651]
[1747421763089,511.0772,170.51,170.4,60.16]
[1747421763390,60.18,170.5,170.4,60.16]
[1747421763587,5.8634,170.48,170.44,5.8645]
[1747421763785,60.18,170.5,170.4,60.16]
[1747421764289,60.18,170.5,170.4,120.32]
[1747421764786,66.043,170.5,170.4,120.32]
[1747421764987,605.43544637,170.59,170.4,120.32]
[1747421765291,5.8619,170.53,170.42,10.79694729]
[1747421765491,60.16,170.52,170.42,10.79694729]
[1747421766592,60.16,170.52,170.49,5.863]
[1747421767588,60.14,170.55,170.46,60.14]
[1747421767891,60.08,170.54,170.46,60.14]
[1747421768282,65.9414,170.54,170.46,60.14]
[1747421768587,60.08,170.54,170.46,60.14]
[1747421768792,60.08,170.54,170.51,5.8622]
[1747421770293,65.9414,170.54,170.5,5.8626]
[1747421771295,60.08,170.54,170.51,5.8624]
[1747421771896,65.9414,170.54,170.51,5.8624]
[1747421772086,60.08,170.54,170.5,5.8626]
[1747421772390,60.08,170.54,170.46,60.14]
[1747421772991,5.862,170.53,170.49,5.8628]
[1747421773191,60.08,170.54,170.46,60.14]
[1747421774493,5.8617,170.53,170.49,5.8629]
[1747421774988,5.8617,170.53,170.46,60.14]
[1747421775896,70.87694729,170.54,170.37,11.7341]
[1747421776091,10.79694729,170.51,170.4,60.12]
[1747421776395,5.8632,170.49,170.45,5.8642]
[1747421776585,59.94,170.5,170.4,60.12]
[1747421776896,5.8631,170.49,170.4,60.12]
[1747421777195,59.94,170.5,170.41,60.08]
[1747421777396,65.8028,170.5,170.46,5.8639]
[1747421777598,59.94,170.5,170.44,60.12]
[1747421777897,5.8637,170.48,170.44,65.9848]
[1747421778099,59.94,170.5,170.44,60.12]
[1747421778293,120.06,170.5,170.41,60.12]
[1747421778595,5.864,170.47,170.43,5.8651]
[1747421778796,5.864,170.47,170.41,60.12]
[1747421778996,120.06,170.5,170.41,60.12]
[1747421779996,59.94,170.5,170.41,60.12]
[1747421780292,65.803,170.5,170.45,5.8641]
[1747421780698,5.8631,170.49,170.45,5.8641]
[1747421781397,5.8631,170.49,170.46,5.8641]
[1747421781597,65.8028,170.5,170.46,5.8641]
[1747421782196,5.8632,170.49,170.46,5.8641]
[1747421782998,65.8028,170.5,170.41,60.12]
[1747421783198,59.94,170.5,170.41,60.12]
[1747421784099,5.8636,170.48,170.44,5.8646]
[1747421784292,5.8636,170.48,170.41,60.12]
[1747421784699,5.8636,170.48,170.44,5.8645]
[1747421786003,5.8636,170.48,170.45,5.8644]
[1747421786598,60.12,170.53,170.41,60.12]
[1747421786799,60.12,170.53,170.41,120.12]
[1747421787005,60.02,170.52,170.41,120.12]
[1747421787201,65.8823,170.52,170.41,120.12]
[1747421787905,65.8823,170.52,170.48,5.8632]
[1747421788403,60.0,170.52,170.5,5.8625]
[1747421789610,59.96,170.52,170.45,60.12]
[1747421789803,60.12,170.56,170.46,1.8824]
[1747421790011,59.96,170.55,170.46,1.8824]
[1747421790406,65.981,170.56,170.46,12.67934729]
[1747421790407,60.0,170.56,170.46,12.67934729]
[1747421790609,60.12,170.59,170.47,11.727]
[1747421790813,60.12,170.59,170.49,10.79694729]
[1747421791115,60.02,170.58,170.56,5.8605]
[1747421791815,60.02,170.58,170.47,60.0]
[1747421792313,60.02,170.58,170.48,10.79694729]
[1747421792512,60.02,170.58,170.53,5.8617]
[1747421793510,5.8607,170.56,170.52,5.8619]
[1747421794216,5.8604,170.57,170.53,5.8616]
[1747421794414,60.02,170.58,170.51,60.0]
[1747421794621,60.02,170.58,170.54,5.8611]
[1747421794820,5.8602,170.58,170.54,5.8611]
[1747421795018,65.8602,170.58,170.54,5.8611]
[1747421795518,5.8604,170.57,170.54,5.8611]
[1747421797124,60.0,170.58,170.51,60.0]
[1747421797526,70.77694729,170.57,170.47,59.98]
[1747421797724,5.862,170.52,170.5,5.8626]
[1747421798222,59.96,170.54,170.47,59.98]
[1747421798722,5.8621,170.52,170.49,5.863]
[1747421799326,5.8618,170.53,170.5,5.8627]
[1747421799527,59.92,170.55,170.47,59.98]
[1747421799916,65.7811,170.55,170.47,59.98]
[1747421800119,59.92,170.55,170.47,59.98]
[1747421800831,5.862,170.52,170.49,5.8629]
[1747421801728,5.8624,170.51,170.48,5.8633]
[1747421801929,59.92,170.55,170.47,59.98]
[1747421803431,5.8615,170.54,170.5,5.8625]
[1747421803633,5.8615,170.54,170.47,59.98]
[1747421804032,5.8615,170.54,170.51,5.8624]
[1747421804432,59.98,170.57,170.47,59.98]
[1747421804634,59.9,170.54,170.52,5.862]
[1747421804932,65.7616,170.54,170.47,59.98]
[1747421805831,65.7616,170.54,170.5,5.8625]
[1747421807333,65.7616,170.54,170.47,59.98]
[1747421807629,59.9,170.54,170.47,59.98]
[1747421808422,59.82,170.55,170.47,59.98]
[1747421808932,59.82,170.55,170.52,5.862]
[1747421809325,59.98,170.57,170.47,59.98]
[1747421809630,59.82,170.6,170.51,10.79694729]
[1747421809834,59.82,170.6,170.52,61.9247]
[1747421810034,59.82,170.6,170.58,5.8598]
[1747421810431,59.82,170.6,170.52,61.9247]
[1747421811934,60.3,170.6,170.52,61.9247]
[1747421812638,60.3,170.6,170.49,59.98]
[1747421812839,10.79694729,170.59,170.52,5.8618]
[1747421813027,59.98,170.58,170.52,5.8618]
[1747421813538,59.98,170.58,170.49,59.98]
[1747421814040,5.8603,170.57,170.53,5.8614]
[1747421814439,59.98,170.58,170.49,59.98]
[1747421815336,5.8605,170.57,170.52,5.8617]
[1747421815639,5.8605,170.57,170.49,59.98]
[1747421816339,59.98,170.58,170.49,59.98]
[1747421816843,59.98,170.58,170.52,5.8619]
[1747421817037,10.79694729,170.56,170.46,65.6697]
[1747421817237,61.46,170.55,170.46,65.6697]
[1747421817644,61.46,170.55,170.46,63.8044]
[1747421818343,5.8621,170.52,170.48,5.8631]
[1747421818843,61.46,170.55,170.46,63.8044]
[1747421819335,67.3212,170.55,170.51,5.8622]
[1747421820144,5.8614,170.54,170.5,5.8626]
[1747421820348,61.46,170.55,170.46,63.8044]
[1747421820542,1.8595,170.56,170.46,63.8044]
[1747421820743,5.862,170.53,170.49,5.8628]
[1747421820945,61.34,170.55,170.49,5.8628]
[1747421821443,61.34,170.55,170.46,63.8044]
[1747421821945,67.2011,170.55,170.52,5.8617]
[1747421822140,61.34,170.55,170.46,63.8044]
[1747421822336,61.34,170.55,170.47,1.9602]
[1747421823342,61.34,170.55,170.52,5.862]
[1747421823542,3.8709,170.61,170.5,61.48]
[1747421823850,61.4,170.6,170.57,5.8602]
[1747421824349,67.2593,170.6,170.56,5.8605]
[1747421824850,61.4,170.6,170.56,5.8606]
[1747421825345,61.4,170.6,170.51,10.79694729]
[1747421825546,5.8598,170.59,170.55,5.8607]
[1747421825740,5.8598,170.59,170.51,10.79694729]
[1747421826444,61.4,170.6,170.51,10.79694729]
[1747421826650,61.36,170.61,170.51,10.79694729]
[1747421826853,61.36,170.61,170.58,5.8597]
[1747421827243,61.36,170.61,170.55,61.46]
[1747421828349,61.46,170.64,170.55,61.46]
[1747421828549,61.3,170.63,170.55,61.46]
[1747421828749,5.8591,170.61,170.55,61.46]
[1747421829048,61.3,170.63,170.55,61.46]
[1747421829249,5.8596,170.6,170.56,5.8605]
[1747421829952,61.3,170.63,170.56,5.8605]
[1747421830153,10.79694729,170.58,170.47,1.9602]
[1747421830341,123.24,170.57,170.47,1.9602]
[1747421830544,5.8618,170.53,170.5,5.8624]
[1747421830745,61.76,170.52,170.5,5.8624]
[1747421831247,67.622,170.52,170.5,5.8624]
[1747421831447,67.622,170.52,170.49,5.863]
[1747421831747,61.76,170.52,170.47,1.9602]
[1747421831948,61.76,170.52,170.49,5.863]
[1747421833354,61.76,170.52,170.46,65.2844]
[1747421833548,61.76,170.52,170.43,61.46]
[1747421833955,5.8633,170.49,170.42,61.46]
[1747421834252,61.76,170.52,170.42,61.46]
[1747421834452,61.76,170.52,170.47,5.8635]
[1747421835055,5.8632,170.49,170.45,5.8641]
[1747421835251,5.8632,170.49,170.42,61.46]
[1747421835756,5.8632,170.49,170.46,5.8639]
[1747421836355,5.8628,170.5,170.47,5.8638]
[1747421837354,5.8631,170.49,170.46,5.864]
[1747421837759,5.8636,170.48,170.44,5.8645]
[1747421837960,61.46,170.48,170.44,5.8645]
[1747421838256,61.46,170.48,170.42,61.46]
[1747421839257,67.3235,170.48,170.42,61.46]
[1747421839757,67.3235,170.48,170.44,5.8645]
[1747421839963,61.46,170.48,170.42,61.46]
[1747421840558,61.46,170.48,170.45,5.8643]
[1747421840767,61.46,170.48,170.42,61.46]
[1747421841161,61.46,170.48,170.45,5.8644]
[1747421844566,61.46,170.48,170.46,5.8641]
[1747421844762,61.22,170.48,170.42,61.46]
[1747421845665,61.22,170.48,170.39,61.48]
[1747421846167,5.864,170.47,170.39,61.48]
[1747421846658,5.864,170.47,170.43,5.8649]
[1747421846964,5.864,170.47,170.39,61.48]
[1747421848670,61.22,170.48,170.38,5.7975]
[1747421848872,61.22,170.48,170.38,67.2975]
[1747421849371,5.8645,170.45,170.42,5.8653]
[1747421849670,61.08,170.44,170.42,5.8653]
[1747421850670,61.5,170.43,170.31,61.5]
[1747421850965,72.29694729,170.43,170.31,61.5]
[1747421851565,5.8664,170.4,170.36,5.8675]
[1747421851768,72.29694729,170.43,170.36,5.8675]
[1747421851769,61.0,170.39,170.36,5.8675]
[1747421852874,61.0,170.39,170.37,5.8671]
[1747421853074,61.0,170.39,170.31,61.5]
[1747421853772,61.0,170.39,170.37,5.867]
[1747421854368,61.0,170.39,170.36,5.8674]
[1747421854668,5.8669,170.38,170.31,61.5]
[1747421854864,122.0,170.39,170.31,61.5]
[1747421855173,5.8676,170.36,170.31,61.5]
[1747421855379,60.9,170.35,170.31,5.869]
[1747421855565,61.0,170.39,170.28,61.0]
[1747421855566,61.0,170.34,170.28,61.0]
[1747421855770,61.0,170.33,170.25,136.01501093]
[1747421855970,61.0,170.33,170.3,5.8694]
[1747421856979,61.0,170.33,170.25,136.01501093]
[1747421857185,61.0,170.33,170.25,61.0]
[1747421857477,5.8691,170.32,170.25,61.0]
[1747421857676,61.0,170.33,170.25,61.0]
[1747421858379,61.0,170.33,170.22,61.02]
[1747421859079,61.0,170.33,170.27,5.8703]
[1747421859280,61.0,170.33,170.22,61.02]
[1747421859481,5.8702,170.29,170.25,5.8711]
[1747421859680,5.8702,170.29,170.21,1.8449]
[1747421859681,60.9,170.28,170.21,1.8449]
[1747421861578,60.9,170.28,170.26,5.8708]
[1747421861780,517.87694729,170.37,170.23,61.02]
[1747421861982,121.9,170.36,170.24,10.79694729]
[1747421862179,121.9,170.36,170.21,1.8449]
[1747421862487,10.79694729,170.32,170.2,61.02]
[1747421862680,125.8354,170.31,170.22,5.8722]
[1747421862879,125.8354,170.31,170.18,3.8014]
[1747421863483,121.92,170.3,170.18,3.8014]
[1747421863789,5.8701,170.29,170.24,5.8715]
[1747421864598,60.84,170.28,170.24,5.8715]
[1747421865201,60.82,170.27,170.24,5.8715]
[1747421865499,60.8,170.27,170.24,5.8715]
[1747421866594,60.78,170.27,170.24,5.8715]
[1747421866899,60.76,170.27,170.26,5.871]
[1747421867399,5.87,170.29,170.25,5.8712]
[1747421867599,60.76,170.28,170.25,5.8712]
[1747421868296,60.76,170.28,170.21,61.04]
[1747421868498,10.79694729,170.35,170.22,10.79694729]
[1747421868701,121.8,170.34,170.22,12.69094729]
[1747421869600,127.6685,170.34,170.3,5.8696]
[1747421870903,127.6685,170.34,170.31,5.8692]
[1747421871104,121.8,170.34,170.31,5.8692]
[1747421874811,121.8,170.34,170.32,5.8689]
[1747421875112,60.54,170.33,170.26,3.8629]
[1747421877402,60.54,170.33,170.3,5.8694]
[1747421878002,66.4087,170.33,170.3,5.8694]
[1747421878510,60.54,170.33,170.3,5.8694]
[1747421878710,60.54,170.33,170.31,5.8692]
[1747421878905,61.06,170.34,170.26,3.8629]
[1747421879105,60.42,170.33,170.26,3.8629]
[1747421879715,60.42,170.33,170.31,5.869]
[1747421880720,60.42,170.33,170.3,5.8695]
[1747421881317,60.42,170.33,170.26,3.8629]
[1747421881716,5.8696,170.31,170.27,5.8705]
[1747421882213,60.42,170.33,170.27,5.8705]
[1747421883513,60.42,170.33,170.28,5.8702]
[1747421883813,5.8695,170.31,170.28,5.8702]
[1747421884215,5.8697,170.3,170.27,5.8705]
[1747421885118,60.2,170.29,170.22,62.214]
[1747421885716,66.0702,170.29,170.26,5.8707]
[1747421885915,66.0702,170.29,170.22,62.214]
[1747421886305,60.2,170.29,170.22,62.214]
[1747421886720,66.0702,170.29,170.26,5.8709]
[1747421887018,60.16,170.32,170.25,10.79694729]
[1747421887221,60.16,170.32,170.26,64.2219]
[1747421888019,60.16,170.32,170.31,5.8693]
[1747421889424,60.16,170.32,170.3,5.8695]
[1747421889715,60.16,170.32,170.26,64.2219]
[1747421890622,60.16,170.32,170.31,5.8693]
[1747421890816,5.8684,170.34,170.31,5.8693]
[1747421891121,65.9084,170.34,170.31,5.8693]
[1747421891315,5.8684,170.34,170.31,5.8693]
[1747421891520,65.8884,170.34,170.31,5.8693]
[1747421892420,5.8687,170.33,170.26,64.2219]
[1747421892819,5.8687,170.33,170.29,5.8697]
[1747421893018,65.8884,170.34,170.26,64.2219]
[1747421893321,60.02,170.34,170.26,64.2219]
[1747421894023,5.8686,170.33,170.3,5.8695]
[1747421894217,60.02,170.34,170.3,5.8695]
[1747421894519,60.02,170.34,170.26,64.2219]
[1747421895023,65.8884,170.34,170.29,5.8699]
[1747421895218,60.02,170.34,170.29,5.8699]
[1747421895621,5.8687,170.33,170.29,5.8699]
[1747421896122,5.869,170.32,170.29,5.8699]
[1747421896310,60.02,170.34,170.29,5.8699]
[1747421896922,5.8689,170.33,170.29,5.8699]
[1747421898125,5.8691,170.32,170.29,5.8699]
[1747421898929,5.8687,170.33,170.3,5.8696]
[1747421899722,65.8884,170.34,170.31,5.8691]
[1747421899927,60.32,170.36,170.26,64.2219]
[1747421900222,59.76,170.35,170.26,64.2219]
[1747421900423,65.6282,170.35,170.26,64.2219]
[1747421900929,65.6282,170.35,170.32,5.8689]
[1747421901123,59.76,170.35,170.26,64.2219]
[1747421901427,59.76,170.35,170.3,5.8695]
[1747421901620,59.76,170.35,170.26,64.2219]
[1747421902126,5.8688,170.33,170.26,64.2219]
[1747421902822,5.8688,170.33,170.3,5.8695]
[1747421904025,5.869,170.32,170.3,5.8695]
[1747421904232,5.869,170.32,170.29,5.8698]
[1747421904931,5.869,170.32,170.3,5.8696]
[1747421905131,5.8687,170.33,170.3,5.8696]
[1747421905328,59.76,170.35,170.3,5.8696]
[1747421905533,59.76,170.35,170.26,64.2219]
[1747421905734,5.8691,170.32,170.3,5.8696]
[1747421905934,59.76,170.35,170.3,5.8696]
[1747421906334,5.8687,170.33,170.3,5.8696]
[1747421907435,5.8687,170.33,170.31,5.8692]
[1747421907736,5.8685,170.34,170.26,64.2219]
[1747421908038,60.3,170.39,170.28,10.79694729]
[1747421908241,59.66,170.38,170.29,1.9097]
[1747421908630,59.66,170.38,170.3,60.3]
[1747421909743,65.527,170.38,170.35,5.8676]
[1747421910131,59.66,170.38,170.3,60.3]
[1747421910939,59.66,170.38,170.35,5.8677]
[1747421911139,59.66,170.38,170.3,60.3]
[1747421912441,65.5269,170.38,170.35,5.8677]
[1747421912740,59.66,170.38,170.36,5.8675]
[1747421914648,65.5269,170.38,170.36,5.8675]
[1747421914950,65.5269,170.38,170.35,5.8677]
[1747421915239,59.66,170.38,170.3,60.3]
[1747421915444,59.66,170.38,170.36,5.8674]
[1747421916046,65.527,170.38,170.36,5.8674]
[1747421916250,60.3,170.39,170.34,5.8679]
[1747421916439,59.64,170.38,170.34,5.8679]
[1747421916741,5.8675,170.37,170.3,60.3]
[1747421916941,5.8675,170.37,170.35,5.8678]
[1747421917339,65.507,170.38,170.36,5.8673]
[1747421917543,59.64,170.38,170.3,60.3]
[1747421917948,59.64,170.38,170.37,5.8672]
[1747421919051,507.26,170.45,170.32,11.7379]
[1747421919251,119.28,170.44,170.34,59.64]
[1747421919655,59.64,170.44,170.34,59.64]
[1747421919855,59.64,170.43,170.34,59.64]
[1747421920153,59.64,170.43,170.4,5.8658]
[1747421920655,59.64,170.43,170.34,59.64]
[1747421920952,59.64,170.43,170.41,5.8657]
[1747421922657,59.64,170.43,170.42,5.8655]
[1747421924061,59.64,170.43,170.41,5.8657]
[1747421924354,59.64,170.43,170.34,59.64]
[1747421924558,5.8657,170.42,170.4,5.8661]
[1747421924956,119.28,170.44,170.35,22.53274729]
[1747421925354,119.28,170.44,170.36,1.8372]
[1747421927361,119.28,170.44,170.4,5.8659]
[1747421927558,59.64,170.44,170.36,1.8372]
[1747421927856,59.64,170.43,170.36,1.8372]
[1747421928459,65.5051,170.43,170.36,1.8372]
[1747421928863,59.64,170.43,170.36,1.8372]
[1747421929056,5.8657,170.42,170.39,5.8665]